[Event "German Bundesliga 2024-25"]
[Site "Germany"]
[Date "2025.01.11"]
[Round "5"]
[White "Gledura, Benjamin"]
[Black "Nasuta, Grzegorz"]
[Result "1-0"]
[Annotator "TA"]
[ECO "B13"]
[WhiteElo "2652"]
[BlackElo "2497"]
[PlyCount "59"]
[EventDate "2024.09.27"]
[EventType "team-tourn"]
[EventCountry "GER"]
[TimeControl "40/5400+30:1800+30"]

{[%evp 23,59,0,0,-4,0,0,0,0,0,0,0,-14,69,40,245,239,248,231,289,279,285,294,400,118,118,117,576,560,29992,1552,29969,12598,29994,29995,29995,29996,29998,29999]} 1. c4 {[%emt 0:01:00]} c6 {[%emt 0:01:00]} 2. e4 {[%emt 0:00:00]} d5 {[%emt 0:00:30]} 3. exd5 {[%emt 0:00:00]} cxd5 {[%emt 0:00:00]} 4. d4 {[%emt 0:00:30]} Nf6 {[%emt 0:00:00]} 5. Nc3 {[%emt 0:00:00]} Nc6 {[%emt 0:02:30]} 6. Nf3 {[%emt 0:01:00]} Bg4 {[%emt 0:00:30]} 7. cxd5 {[%emt 0:03:30]} Nxd5 {[%emt 0:01:30]} 8. Qb3 {[%emt 0:00:00]} Bxf3 {[%emt 0:00:30]} 9. gxf3 {[%emt 0:00:00]} e6 {[%emt 0:00:30]} 10. Qxb7 {[%emt 0:00:30]} Nxd4 {[%emt 0:00:30]} 11. Bb5+ {[%emt 0:00:30]} Nxb5 {[%emt 0:00:30]} 12. Qc6+ {[%emt 0:00:30]} Ke7 {[%emt 0:00:00]} 13. Qc5+ {[%emt 0:00:30] A sharp opening B13: Caro-Kann: Exchange Variation and Panov-Botvinnik Attack.} Nd6 {[%emt 0:05:00]} 14. Nxd5+ {[%emt 0:01:30]} exd5 {[%emt 0:00:00]} 15. O-O {[%emt 0:00:30] The position is equal.} Qc8 {[%emt 0:03:00]} 16. Qxd5 {[%emt 0:00:30]} Qb7 $1 {[%emt 0:01:30]} 17. Qh5 $5 {[%emt 0:00:30][%mdl 4] now scores much better than the old 17.Qe5+. Exploring less charted territory.} Kd7 $146 {[%emt 0:32:30]} (17... Ke8 $11 18. Re1+ Be7) (17... Qb5 18. Re1+ Kd7 19. Re5 Qd3 20. Qg4+ Kd8 21. Qa4 f6 22. Qa5+ Kd7 23. Qa4+ Kd8 {1-0 Van Foreest,J (2695)-Keymer,V (2690) Berlin Armageddon Euro&Africa L 2023 (2.1)}) 18. Rd1 $14 {[%emt 0:30:30][%cal Oc1f4][%mdl 1024] White has compensation.} Re8 $2 {[%emt 0:11:30] [#]} (18... g6 $14 19. Qg4+ f5 20. Qa4+ Qc6) 19. Bf4 $1 $18 {[%emt 0:11:30]} g6 {[%emt 0:06:30][%cal Bg7g6,Bg6g5][%mdl 32]} (19... Qxb2 20. Qxf7+ Kd8 21. Bxd6 (21. Rab1 $2 Qxb1 $19) 21... Bxd6 22. Rxd6+ Kc8 23. Qf5+ Kb8 24. Rb1 $18) 20. Qa5 {[%emt 0:02:30]} Re6 {[%emt 0:01:30][%cal Og6g5]} (20... Qxb2 $2 21. Rab1 (21. Qxa7+ Ke6 $18) 21... Qe2 22. Qxa7+ Ke6 23. Re1 $18) 21. Rac1 {[%emt 0:06:30]} g5 {[%emt 0:04:30]} (21... Qxb2 22. Qxa7+ Kd8 23. Qa8+ (23. Qxf7 Qxc1 24. Bxc1 Re1+ 25. Kg2 Rxd1 $18) (23. Rb1 Bg7 $18)) 22. Bg3 {[%emt 0:19:30]} (22. Bxg5 f6 23. Bf4 (23. Qa4+ Ke7 $17) 23... Rg8+ (23... Qxf3 24. Qxa7+) 24. Bg3 a6 $15 (24... Qxb2 25. Qxa7+ Kd8 26. Qa8+ Kd7 27. Qc8+ Ke7 28. Rc7#)) 22... Rg8 {[%emt 0:08:09][%cal Of8e7]} (22... Qxf3 23. Rc7+ (23. Qxg5 Qb7 $11) 23... Kd8 24. Rxa7+ (24. Rxf7+ Ke8 $18) 24... Ke8 25. Qa4+) 23. Qa4+ $2 {[%emt 0:10:57]} (23. Rd3 $18 {and Rb3 should not be overlooked} a6 (23... Qxb2 24. Rc7+ Kd8 25. Rxa7+ Ke8 26. Ra8+ Kd7 27. Qd8+ Kc6 28. Ra6+ Kb7 29. Qa8+ Kc7 30. Ra7+ Kb6 31. Qb8+) 24. Rb3) 23... Ke7 $16 {[%emt 0:00:42][%cal Bd7e7,Be7f6,Bf6e5,Be5f4][%mdl 32] [#] Strongly threatening ...Kf6.} 24. Rc6 $1 {[%emt 0:02:05] White is more active.} Ne8 {[%emt 0:03:29][%mdl 8192] [#]} (24... Rgg6 $2 25. Bxd6+ (25. Rdxd6 Qxc6 26. Qxc6 Rxd6 $18) 25... Rxd6 26. Rdxd6 $18) (24... Nb5 $16 {is a better chance.} 25. Qa5 Kf6 (25... Rxc6 26. Qd8+ Ke6 27. Re1+ Kf5 28. Re5+ Kg6 29. Qxg5#) 26. Rxe6+ fxe6 (26... Kxe6 $2 27. Qd8 $18)) 25. Qd4 $1 $18 {[%emt 0:03:08]} Qa8 {[%emt 0:11:53] Repels Qd8+} (25... Bg7 26. Rxe6+) 26. Qd7+ {[%emt 0:00:08]} Kf6 {[%emt 0:00:06] [#]} 27. Be5+ $1 {[%emt 0:00:56][%mdl 512]} Kxe5 {[%emt 0:03:05]} (27... Kg6 28. Rxe6+) 28. Rxe6+ {[%emt 0:00:19] White mates.} fxe6 {[%emt 0:00:20]} 29. Re1+ {[%emt 0:00:05]} (29. Qxh7 $2 {loses.} Rg7 (29... Qxf3 30. Re1+ Kd6 31. Qxg8 $15) 30. Re1+ Kd6 31. Qd3+ Ke7 $19) 29... Kf4 {[%emt 0:00:58]} 30. Qf7+ {[%emt 0:00:09] Weighted Error Value: White=0.40/Black=1.11  Loses game:     	---       	Black=2      Missed win:     	White=1     	---        Mistake:       	---       	Black=1      Inaccurate:     	---       	Black=3      OK:         	White=7     	Black=2      Best:        	White=1     	Black=2      Strong:       	White=2     	Black=1} 1-0

[Event "German Bundesliga 2024-25"]
[Site "Germany"]
[Date "2025.01.11"]
[Round "5"]
[White "Moussard, Jules"]
[Black "Ferreira, Jorge Viterbo"]
[Result "1/2-1/2"]
[Annotator "TA"]
[ECO "C79"]
[WhiteElo "2599"]
[BlackElo "2523"]
[PlyCount "40"]
[EventDate "2024.09.27"]
[EventType "team-tourn"]
[EventCountry "GER"]
[TimeControl "40/5400+30:1800+30"]

{[%evp 17,40,25,41,13,18,16,18,25,32,20,10,-24,-15,-5,0,-24,15,0,0,-9,13,18,20,0,7]} 1. e4 {[%emt 0:01:00]} e5 {[%emt 0:01:00]} 2. Nf3 {[%emt 0:00:00]} Nc6 {[%emt 0:00:00]} 3. Bb5 {[%emt 0:00:00][%cal Bf1b5,Bb5a4,Ba4b3][%mdl 32]} a6 {[%emt 0:00:00]} 4. Ba4 {[%emt 0:00:00]} d6 {[%emt 0:00:30]} 5. O-O {[%emt 0:01:00]} Bd7 {[%emt 0:00:30]} 6. c3 {[%emt 0:02:30]} g6 {[%emt 0:00:00]} 7. d4 {[%emt 0:02:30]} Bg7 {[%emt 0:00:00]} 8. Re1 {[%emt 0:01:30]} b5 {[%emt 0:00:30]} 9. Bb3 {[%emt 0:03:30]} Nf6 {[%emt 0:00:30]} 10. Nbd2 {[%emt 0:09:30][%cal Bb1d2,Bd2f1,Bf1g3][%mdl 32] C79: Ruy Lopez: Steinitz-type lines with 3...a6 4 Ba4 Nf6 5 0-0 d6.} O-O {[%emt 0:00:30]} 11. h3 {[%emt 0:04:30]} Re8 {[%emt 0:00:30]} 12. Bc2 {[%emt 0:03:30]} Na5 {[%emt 0:23:30]} 13. Nf1 {[%emt 0:32:30]} c5 {[%emt 0:00:30]} 14. Ng3 {[%emt 0:01:30]} cxd4 $146 {[%emt 0:11:30]} (14... Qc7 15. dxe5 dxe5 16. Nh2 Rad8 17. Qf3 Qb6 18. h4 h5 19. Bg5 Rc8 20. Rad1 Rc7 {0-1 Saravana,K (2340)-Seo,J (2466) Titled Tuesday intern op 25th Jan blitz 2022 (10)}) 15. cxd4 {[%emt 0:00:30]} exd4 {[%emt 0:00:30]} 16. Nxd4 {[%emt 0:02:30]} Nc6 {[%emt 0:10:30]} 17. Nf3 {[%emt 0:11:30] The position is equal.} Ne5 {[%emt 0:02:30]} 18. Bb3 {[%emt 0:01:38]} Bc6 {[%emt 0:02:30]} 19. Nxe5 {[%emt 0:10:58]} dxe5 {[%emt 0:00:30]} 20. Qxd8 {[%emt 0:06:25]} Rexd8 {[%emt 0:02:30] An uneventful encounter.   Weighted Error Value: White=0.13 (very precise) /Black=0.08 (flawless)   Inaccurate:     	White=1     	Black=1      OK:         	White=3     	Black=5} 1/2-1/2

[Event "German Bundesliga 2024-25"]
[Site "Germany"]
[Date "2025.01.11"]
[Round "5"]
[White "Lodici, Lorenzo"]
[Black "Dardha, Daniel"]
[Result "0-1"]
[Annotator "TA"]
[ECO "B33"]
[WhiteElo "2574"]
[BlackElo "2606"]
[PlyCount "76"]
[EventDate "2024.09.27"]
[EventType "team-tourn"]
[EventCountry "GER"]
[SourceTitle "playchess.com"]
[Source "ChessBase"]
[SourceQuality "1"]
[WhiteTeam "Heimbach-Weis-Neuwied"]
[BlackTeam "Deizisau"]
[TimeControl "40/5400+30:1800+30"]

{[%evp 20,76,13,9,7,0,15,0,0,-8,0,-3,70,84,81,88,80,67,82,35,25,20,19,27,81,0,0,0,0,0,24,28,49,33,64,64,76,42,119,89,104,97,95,93,104,93,100,-33,-28,-88,-87,-375,-341,-709,-1041,-29984,-29985,-29985,-29986]} 1. e4 {[%emt 0:01:00]} c5 {[%emt 0:01:00]} 2. Nf3 {[%emt 0:00:00][%cal Bg1f3,Bf3d4,Bd4b5,Bb5a3,Ba3c2][%mdl 32]} Nc6 {[%emt 0:00:00]} 3. d4 {[%emt 0:00:00]} cxd4 {[%emt 0:00:00]} 4. Nxd4 {[%emt 0:00:30]} Nf6 {[%emt 0:00:30]} 5. Nc3 {[%emt 0:00:30]} e5 {[%emt 0:00:30]} 6. Ndb5 {[%emt 0:00:00]} d6 {[%emt 0:00:30]} 7. Bg5 {[%emt 0:02:00]} a6 {[%emt 0:00:00]} 8. Na3 {[%emt 0:00:00]} b5 {[%emt 0:00:00][%cal Bb7b5,Bb5b4][%mdl 32]} 9. Nd5 {[%emt 0:00:00]} Be7 {[%emt 0:00:30]} 10. Bxf6 {[%emt 0:00:00]} Bxf6 {[%emt 0:00:00]} 11. c4 {[%emt 0:05:00]} b4 {[%emt 0:01:00] B33: Sicilian: Pelikan and Sveshnikov Variations.} 12. Nc2 {[%emt 0:00:30]} O-O {[%emt 0:02:30]} 13. Qf3 {[%emt 0:00:00]} Bg5 {[%emt 0:07:30] The position is equal.} 14. h4 {[%emt 0:01:00]} Bh6 {[%emt 0:00:30]} 15. g4 {[%emt 0:00:30][%cal Og4g5] [#]} Bf4 {[%emt 0:02:30]} 16. Be2 $14 {[%emt 0:04:30]} (16. Ndxb4 Nxb4 17. Nxb4 Qa5 $11) (16. Ncxb4 Nd4 17. Qd1 Rb8 $11) 16... Be6 {[%emt 0:07:30]} 17. Nxf4 {[%emt 0:02:30]} (17. Ncxb4 $6 Nd4 18. Qc3 a5 $11) (17. Ndxb4 Nxb4 18. Nxb4 Qb6 $11) 17... exf4 {[%emt 0:02:30]} 18. Qxf4 {[%emt 0:00:30]} Ne5 {[%emt 0:27:30]} 19. b3 $146 {[%emt 0:18:30]} (19. Nxb4 Rb8 20. Nd3 Bxc4 (20... Nxc4 21. g5 $11) 21. Nxe5 Qa5+ 22. b4 (22. Qd2 $2 Qxe5 23. Qe3 Bxe2 $19) 22... Rxb4 $19 (22... Qxe5 $2 23. Qxe5 dxe5 24. Bxc4 $18) (22... Qxb4+ 23. Qd2 $15)) ({White should try} 19. Ne3 $16) (19. Ne3 Qb6 20. Rd1 a5 21. h5 f6 22. Qg3 b3 23. a3 Rad8 24. f4 Nc6 25. g5 fxg5 {1-0 Mendez Fortes,E (2231)-Zhigalko,S (2572) Titled Tuesday intern op 12th Dec Late blitz 2023 (4)}) 19... Bxg4 $1 {[%emt 0:03:30]} 20. Ne3 {[%emt 0:00:00] Prevents f5.} f5 {[%emt 0:12:30]} 21. exf5 {[%emt 0:03:00]} Qe8 {[%emt 0:05:30]} (21... Bxe2 22. Kxe2 Qd7 23. Rag1 $16) (21... Bxf5 $11 {remains equal.} 22. Nxf5 Qd7) 22. Rd1 {[%emt 0:08:30]} (22. Bxg4 $2 Nd3+ 23. Kf1 Nxf4 $19) (22. Qe4 $1 $16 Bxe2 23. Kxe2) 22... Rxf5 $1 $11 {[%emt 0:02:30]} 23. Qe4 {[%emt 0:00:30]} (23. Nxf5 $2 Nd3+ 24. Kf1 Qxe2+ (24... Nxf4 $2 25. Bxg4 Qe4 26. Rh2 $19) 25. Kg1 Nxf4 $19) 23... Bxe2 {[%emt 0:03:30]} 24. Qxf5 {[%emt 0:00:30]} Bxd1 {[%emt 0:00:59]} 25. Kxd1 {[%emt 0:00:30]} a5 {[%emt 0:05:31]} 26. f4 {[%emt 0:18:30][%cal Bf2f4,Bf4f5][%mdl 32]} Ng6 {[%emt 0:01:52][%cal Oa5a4]} 27. h5 $36 {[%emt 0:04:30][%mdl 2048] White is pushing.} Ne7 {[%emt 0:01:00]} 28. Qe4 {[%emt 0:02:30]} Ra7 {[%emt 0:03:53]} (28... Rd8 $14) 29. h6 {[%emt 0:11:29] Qd4 is the strong threat.} Qg6 {[%emt 0:02:34]} 30. f5 $1 {[%emt 0:03:23]} Qf6 {[%emt 0:00:06] Black is weak on the light squares} 31. hxg7 {[%emt 0:00:51]} Kxg7 {[%emt 0:01:16] [#]} 32. Ke2 $1 {[%emt 0:13:35]} a4 {[%emt 0:03:59]} 33. bxa4 {[%emt 0:00:48]} (33. Ng4 $16 Qb2+ 34. Kf3) 33... Rxa4 $15 {[%emt 0:00:28]} 34. Rg1+ {[%emt 0:00:48]} (34. Rb1 $11) 34... Kf8 $17 {[%emt 0:00:14] Dancing on a razor blade.} 35. Kf3 $2 {[%emt 0:01:03][%mdl 8192] [#] This costs White the game.} (35. Qe6 $17 {might work better.} Rxa2+ 36. Kd3 Ra3+ 37. Ke2 Qxe6 38. fxe6) 35... Ra3 $1 $19 {[%emt 0:00:25]} (35... Rxa2 36. Rh1 $17) 36. Rf1 $2 {[%emt 0:00:29]} (36. Ke2 Rxa2+ 37. Kf3) 36... Nxf5 {[%emt 0:00:24]} (36... Qxf5+ $2 {loses.} 37. Kg2 $18) 37. Kg4 {[%emt 0:00:33]} Nxe3+ {[%emt 0:00:28]} ({Less strong is} 37... Rxe3 38. Qxf5 Qxf5+ 39. Kxf5 $17) 38. Qxe3 {[%emt 0:00:01]} Qxf1 {[%emt 0:00:07] Weighted Error Value: White=0.60/Black=0.10 (very precise)   Loses game:     	White=1     	---        Mistake:       	White=5     	Black=3      Inaccurate:     	White=2     	Black=1      OK:         	White=8     	Black=10     Best:        	White=4     	Black=2      Strong:       	White=2     	Black=3} 0-1

[Event "German Bundesliga 2024-25"]
[Site "Germany"]
[Date "2025.01.11"]
[Round "5"]
[White "Livaic, Leon"]
[Black "Kollars, Dmitrij"]
[Result "1/2-1/2"]
[Annotator "TA"]
[ECO "E04"]
[WhiteElo "2557"]
[BlackElo "2641"]
[PlyCount "133"]
[EventDate "2024.09.27"]
[EventType "team-tourn"]
[EventCountry "GER"]
[TimeControl "40/5400+30:1800+30"]

{[%evp 18,133,-3,0,-27,-85,0,12,10,7,6,12,48,41,47,64,131,133,141,143,139,141,163,148,147,149,142,156,164,133,116,116,131,120,123,114,106,113,132,159,158,146,193,191,206,210,268,268,312,316,284,327,283,252,250,230,222,224,350,332,356,254,297,254,252,256,309,298,320,285,293,294,319,320,313,316,322,270,326,304,491,491,435,382,573,573,548,521,437,70,117,2,2,0,0,0,2,2,2,2,8,8,8,0,110,110,110,110,110,110,110,110,110,110,110,8,8,8]} 1. d4 {[%emt 0:01:00]} Nf6 {[%emt 0:01:00]} 2. c4 {[%emt 0:00:00]} e6 {[%emt 0:00:00]} 3. Nf3 {[%emt 0:00:00]} d5 {[%emt 0:00:00]} 4. g3 {[%emt 0:00:30]} dxc4 {[%emt 0:01:30]} 5. Bg2 {[%emt 0:00:00]} Nc6 {[%emt 0:00:30]} 6. Qa4 {[%emt 0:01:00]} Bb4+ {[%emt 0:00:30]} 7. Bd2 {[%emt 0:00:00]} Nd5 {[%emt 0:00:30]} 8. Bxb4 {[%emt 0:00:00]} Ndxb4 {[%emt 0:00:00]} 9. a3 {[%emt 0:00:30]} b5 {[%emt 0:03:00]} 10. Qxb5 {[%emt 0:00:30]} Nc2+ {[%emt 0:00:30] E04: Open Catalan: 5 Nf3.} 11. Kd2 {[%emt 0:00:30]} (11. Kf1 $11 Rb8 (11... Nxa1 12. Ne5 $16) 12. Qxc6+ Bd7 13. Qxc4 Rxb2 (13... Nxa1 14. b4 $14) 14. Ne5 (14. Qc3 Qb8 $11) 14... Nxa1 15. Be4) 11... Nxa1 {[%emt 0:03:30]} (11... Bd7 $17 12. Kxc2 Nxd4+ 13. Nxd4 Bxb5 14. Nxb5 Rb8) 12. Qxc6+ $11 {[%emt 0:00:30]} Bd7 {[%emt 0:00:00]} 13. Qxc4 {[%emt 0:00:00]} c5 $1 $132 {[%emt 0:08:00][%mdl 2048] Black is not keeping still} 14. Qa2 $1 {[%emt 0:01:00]} cxd4 {[%emt 0:10:30]} 15. Rc1 {[%emt 0:27:30] Prevents Rc8} (15. Qxa1 Qf6 $16) 15... O-O {[%emt 0:12:30][%cal Od8f6]} 16. Qxa1 {[%emt 0:01:30][%cal Ob2b4]} e5 {[%emt 0:05:30]} 17. Ke1 $16 {[%emt 0:06:30]} (17. Nxe5 Qa5+ 18. b4 Qxe5 $19) 17... Qf6 $146 {[%emt 0:09:30]} (17... Be6 18. Nbd2 f6 19. Qb1 Rb8 20. Kf1 Qb6 21. b4 Rfc8 22. Ne1 Qa6 23. Rxc8+ Rxc8 {½-½ Oganian,M (2411)-Iljin,T (2320) Sochi Amateur op 6th 2019 (8)}) 18. Nbd2 {[%emt 0:03:30]} Rac8 {[%emt 0:00:00] Inhibits Rc5.} 19. b3 {[%emt 0:31:30]} Rxc1+ {[%emt 0:13:00]} 20. Qxc1 {[%emt 0:00:00]} Rc8 {[%emt 0:00:30][%cal Rc8c1]} 21. Nc4 {[%emt 0:05:00]} Be6 {[%emt 0:13:01]} 22. Qb2 {[%emt 0:04:45]} (22. Nfxe5 $2 Qxe5 23. h3 Qb5 $19) 22... Rc5 {[%emt 0:06:34]} 23. Nfxe5 {[%emt 0:04:52]} Rxe5 {[%emt 0:00:40]} 24. Nxe5 {[%emt 0:00:05]} Qxe5 $18 {[%emt 0:00:02][%mdl 4096] Endgame [#] KQB-KQB. White is a pawn up.} 25. e3 $1 {[%emt 0:00:44][%mdl 512]} g6 {[%emt 0:04:18]} (25... h5 26. Qxd4) 26. Qxd4 {[%emt 0:05:53]} Qa5+ {[%emt 0:00:03]} 27. Qb4 {[%emt 0:00:08]} Qe5 {[%emt 0:00:22]} (27... Qxb4+ $2 28. axb4 Bxb3 29. Kd2 $18) 28. Bf3 {[%emt 0:00:56]} h5 {[%emt 0:02:35]} 29. Bd1 $1 {[%emt 0:00:32]} Qa1 {[%emt 0:00:22]} (29... Qd5 $16 30. Qb8+ Kh7) 30. Kd2 {[%emt 0:00:53]} Qf6 {[%emt 0:01:53]} 31. f4 {[%emt 0:01:29]} Qb2+ {[%emt 0:02:34]} 32. Bc2 {[%emt 0:00:10]} Qa1 {[%emt 0:00:13]} 33. Qb8+ {[%emt 0:02:59]} Kh7 {[%emt 0:00:01]} 34. Qxa7 {[%emt 0:00:59]} Qg1 {[%emt 0:00:32]} 35. Qc5 {[%emt 0:01:24]} Qxh2+ {[%emt 0:01:39]} 36. Kc3 {[%emt 0:00:01]} Kg8 {[%emt 0:01:15]} 37. Qg5 {[%emt 0:00:16]} Kf8 {[%emt 0:01:13]} (37... Bg4 38. f5 Qxg3) 38. e4 {[%emt 0:01:06]} Qh1 {[%emt 0:00:08]} 39. f5 {[%emt 0:01:12]} Qa1+ {[%emt 0:00:53]} 40. Kd2 {[%emt 0:00:21]} Qd4+ {[%emt 0:00:36]} 41. Ke2 {[%emt 0:01:15]} gxf5 {[%emt 0:08:36]} 42. exf5 {[%emt 0:01:30]} Bc8 {[%emt 0:00:30]} 43. Qe3 {[%emt 0:09:48]} (43. Qxh5 Ba6+ 44. Ke1 Qe3+ 45. Kd1 Qg1+ 46. Kd2 Qd4+ 47. Kc1 Qa1+ 48. Kd2 Qd4+ 49. Kc1 Qa1+ 50. Kd2 Qd4+ $11) 43... Ba6+ {[%emt 0:01:30]} 44. Kf2 {[%emt 0:00:14]} Qf6 {[%emt 0:00:30]} 45. Qc5+ {[%emt 0:04:41]} Kg8 {[%emt 0:00:30]} 46. Ke1 $1 {[%emt 0:02:34]} Qg5 {[%emt 0:02:34] [#] and ...Qc1+ should not be overlooked} 47. Qe5 $1 {[%emt 0:01:05]} Qc1+ {[%emt 0:03:34]} 48. Bd1 {[%emt 0:00:04]} Qxa3 $2 {[%emt 0:00:31] [#]} (48... Qg5 49. a4 Kh7) 49. f6 $1 {[%emt 0:06:06]} (49. Bxh5 Qxb3 50. Qe8+ Kg7 $11) 49... Qb4+ {[%emt 0:01:52]} 50. Kf2 {[%emt 0:00:04]} Qb6+ {[%emt 0:01:53]} (50... Kf8 {was worth a try.} 51. Bxh5 Bd3) 51. Kg2 {[%emt 0:00:26]} Qc6+ {[%emt 0:02:56]} 52. Kh2 {[%emt 0:04:59]} Bd3 {[%emt 0:02:14]} 53. Qg5+ {[%emt 0:00:50]} ({Not} 53. Qxh5 Qxf6 54. Qg4+ Bg6 $11) (53. Bxh5 $18 {Threatening mate with Qg5+.} Qc2+ 54. Kg1 (54. Kh3 Bf5+ 55. Kh4 Be6 $18) 54... Qxb3 55. Qg5+ (55. Qe8+ Kh7 $18) 55... Kf8 56. Qh6+ (56. Qg7+ Ke8 $18) 56... Ke8 57. Qe3+ Kf8 58. Qe7+ Kg8 59. Qe8+ Kh7 60. Qxf7+ (60. Bxf7 Qb6+ 61. Kg2 Qb2+ 62. Kf3 Qxf6+ 63. Ke3 Bb5 $11) 60... Qxf7 61. Bxf7) 53... Bg6 $14 {[%emt 0:00:07]} 54. Bxh5 {[%emt 0:01:46]} (54. Qf4 $16) 54... Qc2+ $11 {[%emt 0:00:25]} 55. Kh3 {[%emt 0:00:25]} Qe4 {[%emt 0:00:45]} 56. Kh2 {[%emt 0:01:30]} Qc2+ {[%emt 0:00:06]} 57. Kg1 {[%emt 0:00:44]} Qb1+ {[%emt 0:00:40]} 58. Kf2 {[%emt 0:00:35] Bxg6 is the strong threat.} Qc2+ {[%emt 0:00:57]} 59. Be2 {[%emt 0:00:24]} Qxb3 {[%emt 0:00:17]} 60. Qe3 {[%emt 0:00:57]} Qxe3+ {[%emt 0:03:29]} (60... Qb2 $11 {remains equal.}) 61. Kxe3 {[%emt 0:00:06] KB-KB. White is a pawn up.} Bc2 {[%emt 0:00:08]} 62. Kf4 {[%emt 0:00:15]} Kf8 {[%emt 0:00:17]} 63. g4 {[%emt 0:00:11]} Bb3 {[%emt 0:00:28]} 64. g5 {[%emt 0:00:04]} Bd5 {[%emt 0:00:17]} 65. Bd3 {[%emt 0:00:03]} Bb3 {[%emt 0:00:26]} 66. g6 {[%emt 0:00:04]} (66. Ke5 $16) 66... fxg6 {[%emt 0:00:02]} 67. Bxg6 {[%emt 0:00:02] Blacks defense is rewarded with a draw.   Weighted Error Value: White=0.22 (precise) /Black=0.28 (precise)   Missed win:     	White=1     	---        Mistake:       	White=3     	Black=7      Inaccurate:     	---       	Black=1      OK:         	White=25    	Black=22     Best:        	White=8     	Black=5      Strong:       	White=4     	Black=1} 1/2-1/2

[Event "German Bundesliga 2024-25"]
[Site "Germany"]
[Date "2025.01.11"]
[Round "5"]
[White "Heimann, Andreas"]
[Black "Winterberg, Lukas"]
[Result "1/2-1/2"]
[Annotator "TA"]
[ECO "D27"]
[WhiteElo "2553"]
[BlackElo "2410"]
[PlyCount "48"]
[EventDate "2024.09.27"]
[EventType "team-tourn"]
[EventCountry "GER"]
[SourceTitle "playchess.com"]
[Source "ChessBase"]
[SourceQuality "1"]
[WhiteTeam "Deizisau"]
[BlackTeam "Heimbach-Weis-Neuwied"]
[TimeControl "40/5400+30:1800+30"]

{[%evp 21,48,2,24,-6,0,-19,-5,-22,28,18,47,38,30,40,29,0,0,0,0,0,0,0,0,0,0,0,0,0,0]} 1. d4 {[%emt 0:01:00]} d5 {[%emt 0:01:00]} 2. c4 {[%emt 0:00:00]} dxc4 {[%emt 0:00:00]} 3. Nf3 {[%emt 0:00:00]} Nf6 {[%emt 0:00:00]} 4. e3 {[%emt 0:00:30]} e6 {[%emt 0:00:30]} 5. Bxc4 {[%emt 0:00:30]} c5 {[%emt 0:00:30]} 6. O-O {[%emt 0:00:00]} Nc6 {[%emt 0:00:00]} 7. Qe2 {[%emt 0:05:00]} a6 {[%emt 0:01:00]} 8. a4 {[%emt 0:05:30]} cxd4 {[%emt 0:02:30]} 9. Rd1 {[%emt 0:00:30]} Be7 {[%emt 0:00:30]} 10. exd4 {[%emt 0:02:30]} O-O {[%emt 0:00:30]} 11. Nc3 {[%emt 0:00:30]} Nb4 {[%emt 0:00:30]} 12. Qe5 {[%emt 0:01:30]} Bd6 {[%emt 0:06:30]} 13. Qg5 {[%emt 0:01:30]} Nfd5 {[%emt 0:09:30]} 14. Qg4 {[%emt 0:11:30]} f5 {[%emt 0:03:30]} (14... Qc7 $142 15. Bb3 Nf4) 15. Qh5 $11 {[%emt 0:05:30]} Qc7 {[%emt 0:05:30]} 16. Bb3 {[%emt 0:05:30]} h6 {[%emt 0:18:30]} 17. Nxd5 {[%emt 0:24:30]} Nxd5 {[%emt 0:24:30]} 18. Bxh6 {[%emt 0:11:30]} gxh6 {[%emt 0:00:30]} 19. Bxd5 $1 {[%emt 0:00:30]} exd5 {[%emt 0:02:30]} 20. Qg6+ {[%emt 0:00:00]} ({Of course not} 20. Qxh6 Bf4 21. Qh4 Rf7 $17) 20... Kh8 {[%emt 0:00:30] Hoping for ...Bf4.} 21. Qxh6+ {[%emt 0:00:00]} Kg8 {[%emt 0:00:30]} 22. Qg6+ {[%emt 0:10:39]} Kh8 {[%emt 0:00:30]} 23. Qh6+ {[%emt 0:06:04]} Kg8 {[%emt 0:00:30]} 24. Qg6+ {[%emt 0:00:04]} Kh8 {[%emt 0:00:30]} 1/2-1/2